Cogmind - Beta 11.1 @@@ ROGUE MODE // 2022.09.02 @ 17:03:32 Player: Cracklepappy Result: Destroyed by as-67635 with Assembled F-torch Performance ------------- Evolutions (3) 1500 Regions Visited (10) 2000 Robots Destroyed (241) 1205 Value Destroyed (7584) 7584 Prototype IDs (27) 540 Alien Tech Used (0) 0 Bonus (1898) 1898 TOTAL SCORE: 14727 Bonus ------- High Alert Combat Kills 98 Met Imprinter 300 Destroyed Z-Imprinter 1000 Triggered Deep Caves Wall 500 Cogmind --------- Core Integrity 0/700 Matter 250/300 Energy 100/100 System Corruption 0% Temperature Cool (20) Movement Treading (320) Ox2 Location -7/Deep Caves Parts ------- > --- POWER (1) -------- Zionite Light DM Reactor > --- PROPULSION (3) --- Light Treads Improved Medium Treads > --- UTILITY (7) ------ Improved Cooling System Huge Storage Unit Experimental Targeting Computer Zionite Light Carapace > --- WEAPON (2) ------- Rocket Array Rocket Array > --- INVENTORY (25) --- Zionite Light DM Reactor Light Treads Experimental Heat Sink Improved Cooling System Coolant Injector High-capacity Storage Unit Zionite Biocell (600) Zionite Biocell (600) High-capacity Matter Pod (200) Experimental Sensor Array Improved Terrain Scanner Improved Salvage Targeting Computer Medium Armor Plating Graphene Brace Trap Reconfigurator Phasing AFG Magnetic Acceleration Cannon Guided EMP Blaster RU-N14's Throwing Claymores (10) RU-N14's Throwing Claymores (1) RU-N14's Throwing Claymores (1) Heavy Flail CR-A16's Pointy Stick Peak State ------------ > --- POWER ------------ Zionite Light DM Reactor > --- PROPULSION ------- Light Treads Light Treads Improved Medium Treads > --- UTILITY ---------- Improved Cooling System Huge Storage Unit Experimental Targeting Computer Zionite Light Carapace Zionite Heavy Carapace Phasing AFG > --- WEAPON ----------- RU-N14's Throwing Claymores RU-N14's Throwing Claymores > --- INVENTORY -------- Zionite Light DM Reactor Light Treads Experimental Heat Sink Improved Cooling System High-capacity Storage Unit Zionite Biocell Zionite Biocell High-capacity Matter Pod Experimental Sensor Array Improved Terrain Scanner Improved Salvage Targeting Computer Graphene Brace Trap Reconfigurator Magnetic Acceleration Cannon Guided EMP Blaster Rocket Array Rocket Array RU-N14's Throwing Claymores Heavy Flail CR-A16's Pointy Stick [Rating: 81] Favorites ----------- Power Heavy Ion Engine Engine Heavy Ion Engine Power Core Micro Nuclear Core Reactor Zionite Light DM Reactor Propulsion Light Treads Treads Light Treads Leg Carbon-fiber Leg Utility Experimental Targeting Computer Device Improved Terrain Scanner Storage Huge Storage Unit Processor Experimental Targeting Computer Hackware Makeshift Hacking Suite Protection Medium Armor Plating Weapon Shotgun Energy Gun Lightning Gun Energy Cannon Advanced Beam Cannon Ballistic Gun Shotgun Launcher Improved Grenade Launcher Special Weapon RU-N14's Throwing Claymores Impact Weapon Heavy Flail Slashing Weapon Katana Piercing Weapon CR-A16's Pointy Stick Special Melee Weapon Datajack Build | -11 -10 -10 -9 -9 -8 -7 -7 -7 -7 -7 ------- Run | Scr Mat Min Mat Sto Mat Fac Low Low Zio Dee Slots Evolved 6 | . . . 2 . 2 2 . . . . Power . | . . . . . . . . . . . Propulsion 1 | . . . 1 . . . . . . . Utility 5 | . . . 1 . 2 2 . . . . Weapon . | . . . . . . . . . . . Parts Attached 242 | 8 9 7 31 38 39 31 31 13 12 23 Power 20 | 2 1 1 3 3 5 2 2 . . 1 Engine 18 | 2 1 1 3 3 5 2 1 . . . Core 1 | . . . . . . . 1 . . . Reactor 1 | . . . . . . . . . . 1 Propulsion 56 | 2 4 . 10 11 12 4 7 2 . 4 Treads 49 | 2 4 . 10 11 12 4 2 . . 4 Leg 7 | . . . . . . . 5 2 . . Wheel . | . . . . . . . . . . . Hover . | . . . . . . . . . . . Flight . | . . . . . . . . . . . Utility 79 | 2 1 1 6 7 12 15 10 5 5 15 Device 29 | 1 . . 1 . 3 8 7 2 2 5 Storage 10 | 1 1 . 1 1 1 4 . . . 1 Processor 7 | . . . 1 2 1 1 1 1 . . Hackware 1 | . . . . . . . 1 . . . Protection 32 | . . 1 3 4 7 2 1 2 3 9 Artifact . | . . . . . . . . . . . Weapon 87 | 2 3 5 12 17 10 10 12 6 7 3 Energy Gun 8 | . . . 1 1 1 . 5 . . . Energy Cannon 1 | . . . . 1 . . . . . . Ballistic Gun 43 | 2 3 3 9 11 8 5 1 1 . . Ballistic Cannon . | . . . . . . . . . . . Launcher 22 | . . 2 . 1 1 5 5 4 2 2 Special Weapon 4 | . . . . . . . . . 3 1 Impact Weapon 1 | . . . . . . . . . 1 . Slashing Weapon 6 | . . . 2 2 . . 1 1 . . Piercing Weapon 1 | . . . . . . . . . 1 . Special Melee Weapon 1 | . . . . 1 . . . . . . Unidentified Prototypes 19 | . . . 1 6 1 . . . 4 7 Corrupted Parts 6 | . . . . 2 . . 4 . . . System Corruption 32 | . . . . 10 . . 22 . . . Parts Lost 48 | . 1 1 2 . 12 8 10 7 . 7 Power 3 | . . . . . 1 . 1 1 . . Propulsion 17 | . 1 . . . 4 3 6 1 . 2 Utility 16 | . . . 1 . 4 3 1 2 . 5 Weapon 12 | . . 1 1 . 3 2 2 3 . . Highest Loss Streak 7 | . 1 1 1 . 6 5 7 6 . 3 To Critical Strikes 1 | . . . . . . . . 1 . . Average Slot Usage (%) 93 | . 99 100 99 99 88 90 97 96 86 91 Engine 5 | . 14 14 11 11 8 7 5 . . . Treads 17 | . 27 28 32 32 26 23 10 . . 20 Leg 8 | . . . . . . . 10 22 23 2 Device 10 | . 14 4 6 . . 15 15 13 14 7 Storage 8 | . 14 14 11 11 9 7 7 7 7 7 Processor 15 | . . . 6 11 17 14 22 29 23 11 Protection 7 | . . 9 8 10 8 5 3 . 6 18 Energy Gun 1 | . . . . . . . 9 4 . . Ballistic Gun 10 | . 28 27 21 21 18 13 3 . . . Special Weapon 1 | . . . . . . . . . . 14 Impact Weapon 1 | . . . . . . . . . 4 . Piercing Weapon 1 | . . . . . . . . . 4 . Naked Turns . | . . . . . . . . . . . Heaviest Build 125 | 11 32 32 38 41 48 114 107 102 109 125 Greatest Support 78 | 40 40 40 63 63 60 68 78 40 40 70 Greatest Overweight (x) 31 | . 1 . . 1 1 1 6 3 31 3 Average Overweight (x) 1 | . . . . . . . 1 2 3 1 Largest Inventory Capacity 25 | 8 15 15 15 15 15 25 25 25 25 25 Average Capacity 20 | 7 14 15 15 15 15 20 25 25 25 25 Most Carried 25 | 7 15 15 15 15 15 25 25 25 25 25 Average Carried 19 | 4 14 14 14 14 14 19 24 24 24 23 Final Capacity 25 | 8 15 15 15 15 15 25 25 25 25 25 Final Carried 25 | 7 15 15 15 15 15 24 25 23 24 24 Class Distribution -------------------- 60% | Mutant 33% | Scavenger-Mutant 5% | Scavenger-Assassin Dominant Class ---------------- Mutant | -10/Materials Mutant | -10/Mines Mutant | -9/Materials Mutant | -9/Storage Scavenger-Mutant | -8/Materials Scavenger-Mutant | -7/Factory Scavenger-Mutant | -7/Lower Caves Scavenger-Assassin | -7/Lower Caves Mutant | -7/Zion Scavenger-Mutant | -7/Deep Caves Resources | -11 -10 -10 -9 -9 -8 -7 -7 -7 -7 -7 ----------- Run | Scr Mat Min Mat Sto Mat Fac Low Low Zio Dee Matter Collected 7022 | 292 679 329 925 879 1318 919 801 342 226 312 Remotely . | . . . . . . . . . . . Salvage Created 8919 | 105 877 231 1202 1328 1753 1591 806 476 . 550 Parts 498 | 7 41 30 102 78 89 79 46 7 . 19 Haulers Intercepted 16 | . 2 . 5 5 4 . . . . . Recyclers Shooed 7 | . 1 . 2 1 2 1 . . . . Parts Field Recycled . | . . . . . . . . . . . Retrieved Matter . | . . . . . . . . . . . Parts Self-Destructed 28 | . . . . . . . 25 2 1 . Prevented 16 | . . . . . . . 16 . . . Kills | -11 -10 -10 -9 -9 -8 -7 -7 -7 -7 -7 ------- Run | Scr Mat Min Mat Sto Mat Fac Low Low Zio Dee Combat Hostiles Destroyed 213 | . 18 13 28 20 35 32 19 8 . 40 Melee 6 | . . . . . . . 6 . . . Guns 131 | . 18 9 28 20 31 19 5 1 . . Cannons 4 | . . . . . . . . . . 4 AOE 71 | . . 4 . . 4 13 7 7 . 36 Classes Destroyed 22 | 2 5 2 2 . 2 3 1 2 . 3 Worker 7 | . 2 . 1 1 1 2 . . . . Builder 5 | . . 2 . 1 1 1 . . . . Tunneler 2 | 2 . . . . . . . . . . Hauler 16 | . 2 . 5 5 4 . . . . . Recycler 9 | 1 . . 1 2 1 4 . . . . Mechanic 1 | . . . . . . 1 . . . . Operator 3 | . 2 . 1 . . . . . . . Watcher 15 | . 3 . 5 2 3 2 . . . . Swarmer 47 | . . 9 11 4 11 6 6 . . . Grunt 79 | . 18 4 8 8 11 16 11 3 . . Duelist 4 | . . . 1 . 1 1 . 1 . . Sentry 25 | . . . 8 8 7 1 1 . . . Specialist 6 | . . . . . 4 2 . . . . Hunter 1 | . . . . . . 1 . . . . Programmer 5 | . . . . . . 5 . . . . Heavy 1 | . . . . . 1 . . . . . Behemoth 1 | . . . . . . . 1 . . . Z-Light 8 | . . . . . . . . . . 8 Tinkerer 1 | . . . . . . . . 1 . . Assembled 30 | . . . . . . . . . . 30 Golem 1 | . . . . . . . . . . 1 Thug 1 | . . . . . . . . 1 . . Savage 3 | . . . . . . . . 3 . . Best Kill Streak 29 | 1 4 4 6 4 6 16 5 4 . 29 Combat Bots Only 29 | . 3 4 5 3 5 13 5 4 . 29 Max Kills in Single Turn 29 | 1 2 2 2 2 4 5 3 2 . 29 Gunslinging 1 | . 1 1 . 1 1 . . . . . Exploded 29 | . . 2 . . 4 4 3 2 . 29 Melee 1 | . . . . . . . 1 . . . Uniques/NPCs Destroyed 1 | . . . . . . . . . . 1 Z-Imprinter (-7/Deep Caves) Combat | -11 -10 -10 -9 -9 -8 -7 -7 -7 -7 -7 -------- Run | Scr Mat Min Mat Sto Mat Fac Low Low Zio Dee Damage Taken 11054 | . 686 365 868 647 2737 2315 1672 438 . 1326 Core 1571 | . 71 68 149 117 459 218 259 111 . 119 Absorbed by Shields . | . . . . . . . . . . . Regen/Repaired (Parts) 1058 | . 131 . . 66 225 636 . . . . Core Remaining (%) 48 | 100 . 44 . 33 16 . . . . . Volleys Fired 535 | 6 60 25 77 71 121 92 50 13 . 20 Largest 2 | 2 2 2 2 2 2 2 2 2 . 2 Hottest 110 | 40 46 46 46 46 50 72 110 72 . 90 Shots Fired 1012 | 12 120 46 155 137 239 162 93 18 . 30 Gun 942 | 12 120 42 155 137 238 149 84 5 . . Cannon . | . . . . . . . . . . . Launcher 42 | . . 4 . . 1 13 9 13 . 2 Special 28 | . . . . . . . . . . 28 Kinetic 900 | 12 120 42 155 137 238 149 44 3 . . Thermal 3 | . . . . . . . 1 2 . . Explosive 67 | . . 4 . . 1 13 6 13 . 30 Electromagnetic 42 | . . . . . . . 42 . . . Robot Hit Streak 46 | 2 12 6 19 30 46 26 27 22 . 24 Robot Miss Streak 9 | 1 4 6 9 4 4 2 2 . . 1 Penetration Max . | . . . . . . . . . . . Secondary Targets 8 | . 1 1 . 1 5 . . . . . Max Gunslinging Chain 1 | . 1 1 . 1 1 . . . . . Shots Hit Robots 827 | 8 95 27 119 108 208 128 87 26 . 21 Core Hits 517 | 4 51 21 65 41 84 87 37 25 . 102 Critical Kills 3 | . 1 . 1 1 . . . . . . Critical Parts Destroyed 6 | . . . . . 4 1 1 . . . Critical Strikes 15 | . 1 . 1 1 4 1 6 1 . . Destroy 10 | . 1 . 1 1 4 1 2 . . . Corrupt 3 | . . . . . . . 3 . . . Sever 2 | . . . . . . . 1 1 . . Melee Attacks 56 | . . . 2 2 . . 18 16 18 . Impact 16 | . . . . . . . . . 16 . Slashing 38 | . . . 2 2 . . 18 16 . . Piercing 2 | . . . . . . . . . 2 . Sneak Attacks 2 | . . . . . . . 1 1 . . Combat Hostiles 1 | . . . . . . . 1 . . . Follow-up Attacks . | . . . . . . . . . . . Damage Inflicted 23862 | 71 1340 771 2044 1826 3667 4009 2320 2010 . 5804 Guns 12425 | 71 1276 425 2002 1801 3453 2183 1177 37 . . Cannons . | . . . . . . . . . . . Explosions 9088 | . . 308 . . 193 1815 625 1338 . 4809 Melee 1153 | . . . . . . . 518 635 . . Ramming 201 | . 64 38 42 25 21 11 . . . . Kinetic 11913 | 71 1276 425 2002 1801 3453 2183 665 37 . . Thermal 43 | . . . . . . . 43 . . . Explosive 8969 | . . 308 . . 193 1815 506 1338 . 4809 Electromagnetic 588 | . . . . . . . 588 . . . Impact . | . . . . . . . . . . . Slashing 2148 | . . . . . . . 518 635 . 995 Piercing . | . . . . . . . . . . . Highest Corruption 17 | . . . 1 13 . 1 14 17 17 . Average Corruption 4 | . . . 1 3 . 1 5 9 17 . Corruption Purged 14 | . . . . . . 1 13 . . . Corruption Blocked . | . . . . . . . . . . . Effects 161 | . . . 14 42 . . 42 60 3 . Message Errors 40 | . . . 4 11 . . 9 15 1 . Matter Fused 49 | . . . 4 12 . . 17 16 . . Heat Flow Errors 13 | . . . 1 2 . . 5 4 1 . Energy Discharges 20 | . . . 2 7 . . 1 10 . . Parts Rejected 3 | . . . 1 2 . . . . . . Data Loss (minor) 17 | . . . . 5 . . 4 7 1 . Data Loss (major) 6 | . . . . 2 . . 2 2 . . Misfires 7 | . . . 1 1 . . 2 3 . . Alerts 5 | . . . 1 . . . 2 2 . . Misdirections 1 | . . . . . . . . 1 . . Overload Shots . | . . . . . . . . . . . Overflow Damage 433 | . 1 5 1 4 . 2 112 57 . 251 Projectiles 35 | . . . . . . . . . . 35 Explosions 369 | . . 5 . . . 2 101 45 . 216 Melee 29 | . 1 . 1 4 . . 11 12 . . Knockbacks 1 | . . 1 . . . . . . . . Impact 1 | . . 1 . . . . . . . . Kinetic . | . . . . . . . . . . . Secondary . | . . . . . . . . . . . Self-Inflicted Damage 363 | . . 56 . . . 121 62 61 . 63 Shots 14 | . . 3 . . . 5 2 2 . 2 Rammed 32 | . 12 4 5 2 7 2 . . . . Targets Rammed 40 | . 14 6 6 4 8 2 . . . . Kicked . | . . . . . . . . . . . Crushed 8 | . 2 2 1 2 1 . . . . . Highest Temperature 315 | . 36 4 274 248 104 59 315 209 126 . Average Temperature 35 | . 9 2 39 33 17 12 101 51 78 . Received Heat Transfer 3103 | . 357 105 264 189 792 549 519 137 . 191 Siege Activations . | . . . . . . . . . . . Robots Corrupted 1 | . . . . . . . 1 . . . Combat Hostiles 1 | . . . . . . . 1 . . . Parts Fried 2 | . 1 . . . . . 1 . . . Impact Corruptions 3 | . 1 . 1 1 . . . . . . Robots Melted . | . . . . . . . . . . . Combat Hostiles . | . . . . . . . . . . . Parts Melted . | . . . . . . . . . . . Heat Transferred 100 | . . . . . . . 100 . . . Parts Sabotaged . | . . . . . . . . . . . Parts Stolen . | . . . . . . . . . . . Parts Stripped . | . . . . . . . . . . . Power Chain Reactions 1 | . . . . . . . 1 . . . Missiles Intercepted . | . . . . . . . . . . . Alert | -11 -10 -10 -9 -9 -8 -7 -7 -7 -7 -7 ------- Run | Scr Mat Min Mat Sto Mat Fac Low Low Zio Dee Peak Influence 473 | 15 333 384 368 266 468 473 . . . . Initial 138 | . 9 55 50 138 67 98 . . . . Average 185 | 7 197 203 233 132 209 145 . . . . Maximum Alert Level 2 | . 1 1 1 1 2 2 . . . . Low Security (%) 56 | 100 37 72 32 85 46 72 . . . . Level 1 41 | . 62 27 67 14 51 16 . . . . Level 2 2 | . . . . . 1 11 . . . . Level 3 . | . . . . . . . . . . . Level 4 . | . . . . . . . . . . . Level 5 . | . . . . . . . . . . . High Security . | . . . . . . . . . . . Max Security . | . . . . . . . . . . . Squads Dispatched 23 | . 5 . 2 2 5 9 . . . . Investigation 5 | . 3 . 1 . . 1 . . . . Extermination 2 | . . . . . . 2 . . . . Reinforcement 12 | . 2 . 1 2 4 3 . . . . Assault . | . . . . . . . . . . . Garrison 4 | . . . . . 1 3 . . . . Intercept . | . . . . . . . . . . . Searches Triggered . | . . . . . . . . . . . Construction Impeded 2 | . . . . . . 2 . . . . Haulers Reinforced . | . . . . . . . . . . . Active Scanning Responses . | . . . . . . . . . . . Cargo Convoy Interrupts 1 | . . . . . . 1 . . . . Stealth | -11 -10 -10 -9 -9 -8 -7 -7 -7 -7 -7 --------- Run | Scr Mat Min Mat Sto Mat Fac Low Low Zio Dee Distress Signals 15 | . 3 . 4 3 5 . . . . . Communications Jammed . | . . . . . . . . . . . Distress Signals . | . . . . . . . . . . . Times Spotted 285 | . 26 13 38 29 49 51 21 11 . 47 Peak Tracking Total 37 | . 3 4 5 4 5 11 7 4 . 37 Tactical Retreats 9 | . . . 3 1 3 . 2 . . . Traps | -11 -10 -10 -9 -9 -8 -7 -7 -7 -7 -7 ------- Run | Scr Mat Min Mat Sto Mat Fac Low Low Zio Dee Traps Triggered 10 | . 4 . 1 5 . . . . . . Indirectly . | . . . . . . . . . . . Trap Hack Attempts 16 | . . . . 16 . . . . . . Triggered . | . . . . . . . . . . . Disarmed . | . . . . . . . . . . . Reprogrammed 1 | . . . . 1 . . . . . . Reused . | . . . . . . . . . . . Traps Extracted . | . . . . . . . . . . . Installed . | . . . . . . . . . . . Triggered . | . . . . . . . . . . . Machines | -11 -10 -10 -9 -9 -8 -7 -7 -7 -7 -7 ---------- Run | Scr Mat Min Mat Sto Mat Fac Low Low Zio Dee Machines Disabled 5 | . . . 1 2 . 2 . . . . Max in Single Turn 1 | . . . 1 1 . 1 . . . . Garrison Access 2 | . . . . 1 1 . . . . . Machines Sabotaged . | . . . . . . . . . . . Garrisons Compromised . | . . . . . . . . . . . Overloaded Fab Kills . | . . . . . . . . . . . Hacking | -11 -10 -10 -9 -9 -8 -7 -7 -7 -7 -7 --------- Run | Scr Mat Min Mat Sto Mat Fac Low Low Zio Dee Machines Accessed 49 | . 8 2 15 12 8 4 . . . . Terminals 34 | . 5 2 11 9 6 1 . . . . Fabricators . | . . . . . . . . . . . Repair Stations 7 | . 1 . 2 2 1 1 . . . . Recycling Units 3 | . 2 . . . . 1 . . . . Scanalyzers 2 | . . . 2 . . . . . . . Garrison Access 3 | . . . . 1 1 1 . . . . Total Hacks 126 | . 20 7 38 31 20 10 . . . . Successful 68 | . 12 5 17 17 10 7 . . . . Failed 58 | . 8 2 21 14 10 3 . . . . Catastrophic 17 | . 1 . 6 3 6 1 . . . . Database Lockouts . | . . . . . . . . . . . Manual 57 | . 15 8 13 11 8 2 . . . . Terminals 92 | . 16 7 27 22 17 3 . . . . Fabricators . | . . . . . . . . . . . Repair Stations 21 | . 2 . 5 8 2 4 . . . . Recycling Units 3 | . 2 . . . . 1 . . . . Scanalyzers 6 | . . . 6 . . . . . . . Garrison Access 4 | . . . . 1 1 2 . . . . Terminal Hacks 42 | . 7 5 11 10 7 2 . . . . Part Schematic 2 | . 2 . . . . . . . . . Robot Analysis 12 | . 4 4 1 1 2 . . . . . Prototype ID Bank 5 | . . . 4 . 1 . . . . . Open Door 3 | . . . . 3 . . . . . . Branch Access Points 2 | . . . 1 . . 1 . . . . Terminal Index 1 | . . . . 1 . . . . . . Alert Level 2 | . . . 1 . . 1 . . . . Unreport Threat 6 | . . . 1 3 2 . . . . . Locate Traps 3 | . 1 . . 1 1 . . . . . Hauler Manifests 3 | . . . 2 1 . . . . . . Registered Components 1 | . . . . . 1 . . . . . Zone Layout 2 | . . 1 1 . . . . . . . Fabricator Hacks . | . . . . . . . . . . . Repair Station Hacks 15 | . 2 . 2 5 2 4 . . . . Scan Component 9 | . 1 . 2 3 1 2 . . . . Repair 6 | . 1 . . 2 1 2 . . . . Recycling Unit Hacks 1 | . . . . . . 1 . . . . Retrieve Components 1 | . . . . . . 1 . . . . Scanalyzer 3 | . . . 3 . . . . . . . Insert Component 2 | . . . 2 . . . . . . . Analyze 1 | . . . 1 . . . . . . . Garrison Access Hacks 2 | . . . . 1 1 . . . . . Seal Access 2 | . . . . 1 1 . . . . . Unauthorized Hacks 5 | . 3 . 1 1 . . . . . . Terminals 3 | . 1 . 1 1 . . . . . . Track 2 | . . . 1 1 . . . . . . Operators 1 | . 1 . . . . . . . . . Fabricators . | . . . . . . . . . . . Repair Stations . | . . . . . . . . . . . Recycling Units 2 | . 2 . . . . . . . . . Tunnel 2 | . 2 . . . . . . . . . Scanalyzers . | . . . . . . . . . . . Garrison Access . | . . . . . . . . . . . Data Cores Recovered 1 | . . . 1 . . . . . . . Used . | . . . . . . . . . . . Hacking Detections 38 | . 6 3 14 7 6 2 . . . . Full Trace Events 2 | . . . 1 . . 1 . . . . Feedback Events . | . . . . . . . . . . . Feedback Blocked . | . . . . . . . . . . . Robot Schematics Acquired . | . . . . . . . . . . . Robots Built . | . . . . . . . . . . . Authchips . | . . . . . . . . . . . Time . | . . . . . . . . . . . Total Robot Build Rating . | . . . . . . . . . . . Part Schematics Acquired 2 | . 2 . . . . . . . . . Parts Built . | . . . . . . . . . . . Authchips . | . . . . . . . . . . . Time . | . . . . . . . . . . . Total Part Build Rating . | . . . . . . . . . . . Parts Repaired 6 | . 1 . . 2 1 2 . . . . Time 315 | . 26 . . 187 38 64 . . . . Parts Recycled . | . . . . . . . . . . . Recycled Matter . | . . . . . . . . . . . Retrieved Matter . | . . . . . . . . . . . Retrieved Components 10 | . . . . . . 10 . . . . Parts Scanalyzed 1 | . . . 1 . . . . . . . Part Schematics Acquired . | . . . . . . . . . . . Parts Damaged . | . . . . . . . . . . . Bothacking | -11 -10 -10 -9 -9 -8 -7 -7 -7 -7 -7 ------------ Run | Scr Mat Min Mat Sto Mat Fac Low Low Zio Dee Used RIF Installer . | . . . . . . . . . . . Robots Hacked . | . . . . . . . . . . . Non-combat . | . . . . . . . . . . . Combat . | . . . . . . . . . . . Robot Hacks Applied . | . . . . . . . . . . . Relay Couplers Released . | . . . . . . . . . . . Fabnet Peak Effective % . | . . . . . . . . . . . Robots Rewired . | . . . . . . . . . . . Allies Hacked . | . . . . . . . . . . . Hacks Repelled . | . . . . . . . . . . . Allies | -11 -10 -10 -9 -9 -8 -7 -7 -7 -7 -7 -------- Run | Scr Mat Min Mat Sto Mat Fac Low Low Zio Dee Total Allies 10 | . . . . . . . . . 10 . Largest Group 10 | . . . . . . . . . 10 10 Highest-Rated Group 287 | . . . . . . . . . 287 287 Highest-Rated Ally 39 | . . . . . . . . . 39 39 Total Orders . | . . . . . . . . . . . Ally Attacks 52 | . . . . . . . . . . 52 Total Damage 741 | . . . . . . . . . . 741 Kills 6 | . . . . . . . . . . 6 Allies Corrupted . | . . . . . . . . . . . Allies Melted . | . . . . . . . . . . . Intel | -11 -10 -10 -9 -9 -8 -7 -7 -7 -7 -7 ------- Run | Scr Mat Min Mat Sto Mat Fac Low Low Zio Dee Robot Analysis Total 11 | . 4 3 1 1 2 . . . . . Derelict Logs Recovered 4 | . . 1 . . . . 2 1 . . Drone Launches . | . . . . . . . . . . . Drone Recoveries . | . . . . . . . . . . . Exploration | -11 -10 -10 -9 -9 -8 -7 -7 -7 -7 -7 ------------- Run | Scr Mat Min Mat Sto Mat Fac Low Low Zio Dee Turns Passed 24280 | 139 1788 1156 2553 2156 2223 1930 2962 1704 5308 2361 Spaces Moved 9418 | 68 871 659 1309 845 994 632 980 609 1533 918 Core 95 | 4 . . . . . . . . 91 . Treads 6711 | 64 871 659 1309 845 994 632 519 . . 818 Legs 2612 | . . . . . . . 461 609 1442 100 Wheels . | . . . . . . . . . . . Hover . | . . . . . . . . . . . Flight . | . . . . . . . . . . . Fastest Speed 50 | 50 160 160 160 160 160 163 193 260 260 240 Average Speed 220 | 153 160 160 160 161 162 233 265 261 339 242 Slowest Speed 1600 | 160 240 160 160 240 240 243 540 330 1600 330 Overloaded Moves . | . . . . . . . . . . . Propulsion Burnouts . | . . . . . . . . . . . Robots Hopped . | . . . . . . . . . . . Cave-ins Triggered . | . . . . . . . . . . . Exploration Rate (%) 71 | 6 98 98 94 96 63 17 97 69 84 65 Regions Visited 10 Branch Regions 6 Pre-discovered Areas 3 | . 2 1 . . . . . . . . Known Exits Taken 2 | . . . 1 . . 1 . . . . Unknown Exits Taken 8 | 1 1 1 . 1 1 . 1 1 1 . Scrap Searched 8 | . . 1 . . . . 3 1 3 . Spaces Dug 89 | . . 13 2 . 10 8 21 32 3 . Terrain Destroyed 353 | . . 35 2 . 10 26 57 87 3 133 Melee 6 | . . . 2 . . . . 1 3 . Projectile 3 | . . . . . . . . . . 3 AOE 344 | . . 35 . . 10 26 57 86 . 130 Terrain Rammed . | . . . . . . . . . . . Walls Destroyed . | . . . . . . . . . . . Machines Disabled . | . . . . . . . . . . . Actions | -11 -10 -10 -9 -9 -8 -7 -7 -7 -7 -7 --------- Run | Scr Mat Min Mat Sto Mat Fac Low Low Zio Dee Total 11990 | 90 1147 715 1629 1519 1393 948 1227 682 1615 1025 Wait 1369 | . 167 7 142 498 189 152 129 26 30 29 Move 9408 | 67 870 658 1308 844 993 631 979 608 1532 918 Hop . | . . . . . . . . . . . Pick Up 157 | 8 17 6 25 15 14 28 13 4 10 17 Fast Attach 66 | 7 4 . 5 14 18 1 5 . 6 6 Attach 52 | . 1 1 5 4 8 11 9 5 3 5 Detach 8 | . . . . 2 . . 1 1 3 1 Swap 124 | 1 4 6 21 20 13 19 17 8 3 12 Drop 161 | 1 10 6 38 29 29 12 6 1 12 17 Fire 535 | 6 60 25 77 71 121 92 50 13 . 20 Melee 54 | . . . 2 2 . . 18 16 16 . Ram . | . . . . . . . . . . . Kick . | . . . . . . . . . . . Crush 40 | . 14 6 6 4 8 2 . . . . Escape Stasis . | . . . . . . . . . . . Rewire . | . . . . . . . . . . . Trap 16 | . . . . 16 . . . . . . Miscellaneous . | . . . . . . . . . . . Route ------- -11/Scrapyard -10/Materials (discovered 4 exits: *Mat x3 / *Min) -10/Mines (discovered 3 exits: *Mat x2 / [*Exi]) -9/Materials (discovered 5 exits: *Mat x3 / *Min / *Sto) -9/Storage -8/Materials -7/Factory (discovered 2 exits: *Low x2) -7/Lower Caves -7/Lower Caves -7/Zion (discovered 2 exits: [*Dee] / [*Pro]) -7/Deep Caves History --------- Turn | Location | Event 7 | -11/Scrapyard | Discovered new exit (range 13) 140 | -11/Scrapyard | Entered Materials 302 | -10/Materials | Build established: Mutant 529 | -10/Materials | Discovered new exit (range 3) 895 | -10/Materials | Discovered new exit (range 11) 997 | -10/Materials | Discovered new exit (range 6) 1530 | -10/Materials | Discovered new exit (range 8) 1567 | -10/Materials | Repaired Lgt. Treads 1928 | -10/Materials | Entered Mines 1971 | -10/Mines | Discovered new exit (range 6) 2152 | -10/Mines | Core integrity fell below 50% 2303 | -10/Mines | Received a Rocket Launcher from a helpful Derelict 2344 | -10/Mines | Discovered new exit (range 8) 2419 | -10/Mines | Learned location of Storage (-9) 2468 | -10/Mines | Deemed a non-threat by the Exiles lab entrance 2468 | -10/Mines | Discovered new exit (range 5) 2700 | -10/Mines | Found a damaged Exp. Sensor Array with a note attached 2704 | -10/Mines | Found Prototype Device 2878 | -10/Mines | Learned Materials security intel 3084 | -10/Mines | Entered Materials 3084 | -9/Materials | Evolved 2 slots: Propulsion x1, Utility x1 3206 | -9/Materials | Discovered new exit (range 9) 3338 | -9/Materials | Identified exit to Mines 3338 | -9/Materials | Identified exit to Storage 3543 | -9/Materials | Discovered new exit (range 16) 4472 | -9/Materials | Discovered new exit (range 13) 4563 | -9/Materials | Identified Exp. Sensor Array 4914 | -9/Materials | Discovered new exit (range 14) 5637 | -9/Materials | Entered Storage 6239 | -9/Storage | Core integrity fell below 50% 7413 | -9/Storage | Repaired Broken Exp. Sensor Array 7475 | -9/Storage | Repaired Imp. Assault Rifle 7613 | -9/Storage | Found Corrupted Prototype Processor 7613 | -9/Storage | Identified Exp. Targeting Computer 7644 | -9/Storage | Discovered new exit (range 16) 7735 | -9/Storage | Found Corrupted Exp. Targeting Computer 7784 | -9/Storage | System corruption reached 10% 7793 | -9/Storage | Entered Materials 7793 | -8/Materials | Evolved 2 slots: Utility x2 8111 | -8/Materials | Lost 3 parts (1n1u1w) 8170 | -8/Materials | Core integrity fell below 50% 8206 | -8/Materials | Lost 6 parts (1p2n1u2w) 8501 | -8/Materials | Build established: Scavenger-Mutant 8846 | -8/Materials | Core integrity fell below 20% 8942 | -8/Materials | Discovered new exit (range 10) 9016 | -8/Materials | Repaired Arm. Treads 9138 | -8/Materials | Garrison activated, responded to threat 10016 | -8/Materials | Entered Factory 10016 | -7/Factory | Evolved 2 slots: Utility x2 10324 | -7/Factory | Repaired Hvy. Armor Plating 10359 | -7/Factory | Repaired Hcp. Storage Unit 10691 | -7/Factory | Identified exit to Lower Caves 11660 | -7/Factory | Garrison activated, responded to threat 11715 | -7/Factory | Cargo convoy interrupted 11753 | -7/Factory | Destroyed 13 combat bots 11753 | -7/Factory | Lost 5 parts (3n1u1w) 11946 | -7/Factory | Entered Lower Caves 12016 | -7/Lower Caves | Attracted the attention of an 0b10 checkpoint 12106 | -7/Lower Caves | Encountered a Warlord checkpoint 12112 | -7/Lower Caves | Learned 8 Factory zone layouts 12403 | -7/Lower Caves | Learned 4 Factory zone layouts 12561 | -7/Lower Caves | Spotted B-75 Beast 12638 | -7/Lower Caves | Destroyed B-75 Beast 13354 | -7/Lower Caves | System corruption reached 10% 13689 | -7/Lower Caves | Build established: Mutant 14121 | -7/Lower Caves | Discovered new exit (range 12) 14243 | -7/Lower Caves | Core integrity fell below 50% 14318 | -7/Lower Caves | Lost 7 parts (1p3n1u2w) 14548 | -7/Lower Caves | Build established: Scavenger-Mutant 14908 | -7/Lower Caves | Entered another Lower Caves area 15239 | -7/Lower Caves | Build established: Scavenger-Assassin 16473 | -7/Lower Caves | Core integrity fell below 20% 16527 | -7/Lower Caves | Lost 6 parts (1p1n2u2w) 16576 | -7/Lower Caves | Discovered new exit (range 10) 16604 | -7/Lower Caves | Attacked by a faux Warlord 16612 | -7/Lower Caves | Entered Zion 16694 | -7/Zion | System corruption cleaned by Quarantine Array 16792 | -7/Zion | Found Prototype Special Weapon 16792 | -7/Zion | Identified RU-N14's Throwing Claymores 16798 | -7/Zion | Found RU-N14's Throwing Claymores 16802 | -7/Zion | Found RU-N14's Throwing Claymores 16820 | -7/Zion | Build established: Mutant 16935 | -7/Zion | Found RU-N14's Throwing Claymores 17142 | -7/Zion | Discovered new exit (range 10) 17519 | -7/Zion | Learned Factory emergency access door positions 17635 | -7/Zion | Found Prototype Device 17635 | -7/Zion | Identified Phasing AFG 17893 | -7/Zion | Found CR-A16's Pointy Stick 18364 | -7/Zion | Found Prototype Launcher 18364 | -7/Zion | Identified Rocket Array 18379 | -7/Zion | Found Rocket Array 19141 | -7/Zion | Discovered new exit (range 5) 19144 | -7/Zion | Saw the warning signs outside the Deep Caves entrance 21354 | -7/Zion | Gained Derelict followers 21632 | -7/Zion | Gained Derelict followers 21920 | -7/Zion | Entered Deep Caves 21920 | -7/Deep Caves | Accompanied by 10 allies 22139 | -7/Deep Caves | Attacked by Z-Imprinter 22150 | -7/Deep Caves | Destroyed Z-Imprinter 22337 | -7/Deep Caves | Found Prototype Protection 22337 | -7/Deep Caves | Identified Zio. Heavy Carapace 22342 | -7/Deep Caves | Found Prototype Protection 22342 | -7/Deep Caves | Identified Zio. Weapon Casing 22369 | -7/Deep Caves | Z-Facility disabled 22427 | -7/Deep Caves | Found Zio. Weapon Casing 22455 | -7/Deep Caves | Found Zio. Heavy Carapace 22487 | -7/Deep Caves | Build established: Scavenger-Mutant 23291 | -7/Deep Caves | Found Zio. Heavy Carapace 23503 | -7/Deep Caves | Spotted as-52812 23555 | -7/Deep Caves | Destroyed as-52812 23574 | -7/Deep Caves | Lost 3 parts (3u) 23640 | -7/Deep Caves | Found Prototype Device 23641 | -7/Deep Caves | Identified Trap Reconfigurator 24277 | -7/Deep Caves | Triggered Deep Caves wall 24277 | -7/Deep Caves | Spotted AS-47059 24281 | -7/Deep Caves | Destroyed by as-67635 with Assembled F-torch Last Messages --------------- 24278_ as-48407 destroyed. 24278_ as-82765 destroyed. 24278_ as-89555 destroyed. 24278_ as-36755 destroyed. 24278_ as-37932 destroyed. 24278_ as-88020 destroyed. 24278_ Destroyed Asb. F-torch. 24278_ as-97923 destroyed. 24278_ as-52619 destroyed. 24278_ Destroyed Asb. Hover Unit. 24278_ as-41075 destroyed. 24278_ as-41383 destroyed. 24278_ Destroyed Asb. Hover Unit. 24278_ as-90468 destroyed. 24278_ as-38649 destroyed. 24278_ as-57500 destroyed. 24278_ as-22681 destroyed. 24278_ as-99030 destroyed. 24280_ as-97811 released from Mobile Assembly Unit. 24280_ Slug penetrates as-06934. Map ----- +----------------------------------------------------+ | ??????????????????????????????????????????? | | ??????????????????????????????????????????? | | ??????????????????????????????????????????? | | ??????????????????????????????????????????? | | ??????????????????????????????????????????? | | ??????????????????????????????????????????? | | ??????????????????????????????????????????? | | ??????????????????????????????????????????? | | ??????????????????????????????????????????? | | ?????????????????????????????????????? | | ???????????????? ??????????????? | | ?????????????? ??????????????? | | ??????????? ???????????????????? | | ?????????" ???????????????????? | | ?????????" g ???????????????????? | | ?????????" #?###???????????????# | | ????????"" #?# #?????????????### | | ??????### ### ####??????????# | | ?????"" # #??????????# | | ????? ** *####???????????# | | ????? * * ###??????###### | | ????a a * #??????# # | | ???? [* * ###??????# | | ??? ##???????# ## | | ??? a b #???????# ### | | ???A a a @ ! #???????# # | | ??????" a ! #???????# "" # | | ??????### g a * h #???????# """ ? | | ????????"" #???????# " ? | | ?????????" h #???????# ? | | ?????????" M #???????# #### | | ?????????" ##??????# #?## | | ?????????" [* #?????## ### | | ????????# ** #?????# ## | | ????????" ####### | | ????????" g ## "" | | ????????" * | | ????????""" | | ????????" l | | ????????"" ### # | | ????????" "## ### # | | ?????????" ### ##?## # | | ????????" # #?# #???#### | | ????????" #### ## # ##?## ##??????? | | ????????""" ?????# #" ####???####???????? | | ??????????? ???????#?## #?????????????????? | | ??????????????????????###?????????????????? | | | | | | | +----------------------------------------------------+ Best States ------------- Heat Dissipation 61 Energy Generation 27 Energy Capacity 700 Matter Stores 300 Matter Capacity 300 Sight Range 16 Robot Scan Range 20 Terrain Scan Range 16 Terrain Scan Density 210 EM Shielding 2 Armor Coverage 2000 Evasion (%) 40 Targeting Accuracy 24 Target Analysis 5 Recoil Reduction 3 Offensive Hacking 11 Item Schematics ----------------- Huge Storage Unit | -10/Materials | Hacked Lrg. Storage Unit | -10/Materials | Hacked Robot Schematics ------------------ None Fabricated ------------ Nothing Alien Tech Used ----------------- None Achievements -------------- None Challenges ------------ None Game ------ Seed CompactMakeshiftBay Manual? 0 Play Time 02:29:19 Cumulative 333.4 hours Start 2022.09.02 @ 14:32:15 End 2022.09.02 @ 17:03:32 Sessions 1 Manual Loads 0 Difficulty Rogue Special Mode None Game No. 321 Rogue 321 Adventurer 0 Explorer 0 Win Type - Total 4 Types 4/0/0/0/0/0/0/0/0 Lore% 63 Gallery% 78 Achievement% 64 Wizard Run 0 Options --------- ASCII 0 Keyboard 0 Movement Numpad Keybinds 0 Fullscreen 2 Font 24/Terminus Map View 76x50 Tactical HUD 1 Map Filters NONE Filters NONE Steam 1 RUN: 20db0712-1e2b-4856-a0f7-19d3e73c5e62